bitfinex/quotes_BTCUSD_20241124
["timestamp","ask_amount","ask_price","bid_price","bid_amount"]
[1732446841562,0.04940119,97412.0,97401.0,0.0772]
[1732446841785,0.04940119,97411.0,97401.0,0.0772]
[1732446842005,0.001,97408.0,97401.0,0.0772]
[1732446842234,0.04940119,97407.0,97401.0,0.0772]
[1732446842468,0.001,97410.0,97401.0,0.0772]
[1732446842469,0.04940119,97406.0,97401.0,0.0772]
[1732446842686,0.04940119,97405.0,97401.0,0.0772]
[1732446842896,0.001,97412.0,97401.0,0.0772]
[1732446842897,0.04940119,97404.0,97401.0,0.0772]
[1732446843167,0.04940119,97403.0,97401.0,0.0772]
[1732446843375,0.03039888,97410.0,97401.0,0.0772]
[1732446843376,0.04940119,97402.0,97401.0,0.0772]
[1732446844665,0.03040073,97402.0,97401.0,0.0772]
[1732446844878,0.01898872,97402.0,97401.0,0.0772]
[1732446848674,0.04937067,97402.0,97401.0,0.0772]
[1732446851934,0.04937067,97402.0,97395.0,0.0008577]
[1732446852188,0.079766,97401.0,97395.0,0.0008577]
[1732446852392,0.079766,97400.0,97395.0,0.0008577]
[1732446852612,0.04937067,97399.0,97395.0,0.0008577]
[1732446853043,0.04937067,97398.0,97395.0,0.0008577]
[1732446853277,0.04937067,97397.0,97395.0,0.0008577]
[1732446853490,0.04937067,97396.0,97395.0,0.0008577]
[1732446854163,0.09198115,97413.0,97395.0,0.0008577]
[1732446854377,0.03164943,97412.0,97395.0,0.0008577]
[1732446855072,0.10201427,97411.0,97395.0,0.0008577]
[1732446857466,0.04943386,97401.0,97395.0,0.0008577]
[1732446857921,0.04943386,97400.0,97395.0,0.0008577]
[1732446858138,0.19408994,97413.0,97395.0,0.0008577]
[1732446858139,0.04943386,97399.0,97395.0,0.0008577]
[1732446858424,0.04943386,97398.0,97395.0,0.0008577]
[1732446860122,0.19308994,97413.0,97395.0,0.0008577]
[1732446860123,0.10201427,97413.0,97395.0,0.0008577]
[1732446860338,0.01902555,97397.0,97395.0,0.0008577]
[1732446860760,0.01902978,97396.0,97395.0,0.0008577]
[1732446860973,0.01902981,97396.0,97395.0,0.0008577]
[1732446861155,0.04947753,97396.0,97395.0,0.0008577]
[1732446862309,0.01902981,97396.0,97395.0,0.0008577]
[1732446862977,0.01902981,97396.0,97395.0,0.00120769]
[1732446863427,0.01902555,97397.0,97395.0,0.00120769]
[1732446868528,0.01904719,97396.0,97395.0,0.00120769]
[1732446870470,0.04953692,97396.0,97395.0,0.00120769]
[1732446871440,0.08127658,97396.0,97395.0,0.00120769]
[1732446871671,0.04953692,97396.0,97395.0,0.00120769]
[1732446872660,0.08127696,97396.0,97395.0,0.00120769]
[1732446872865,0.04953692,97396.0,97395.0,0.00120769]
[1732446873098,0.08127956,97396.0,97395.0,0.00120769]
[1732446873312,0.04953692,97396.0,97395.0,0.00120769]
[1732446873527,0.01904719,97396.0,97395.0,0.00120769]
[1732446875101,0.01904719,97396.0,97395.0,0.08210769]
[1732446876403,0.01904719,97396.0,97395.0,0.00120769]
[1732446877100,0.05080523,97396.0,97395.0,0.00120769]
[1732446877560,0.08130072,97396.0,97395.0,0.00120769]
[1732446877982,0.081313,97396.0,97395.0,0.00120769]
[1732446878406,0.02879231,97395.0,97389.0,0.04266094]
[1732446878617,0.08131253,97394.0,97389.0,0.04266094]
[1732446878846,0.04955449,97393.0,97389.0,0.04266094]
[1732446879057,0.04955449,97392.0,97389.0,0.04266094]
[1732446879279,0.04955449,97391.0,97389.0,0.04266094]
[1732446879491,0.01905942,97390.0,97389.0,0.04266094]
[1732446880575,0.02879231,97395.0,97389.0,0.04266094]
[1732446881703,0.03175769,97394.0,97389.0,0.04266094]
[1732446882572,0.01906005,97393.0,97389.0,0.04266094]
[1732446882786,0.01906005,97392.0,97389.0,0.04266094]
[1732446883015,0.01906005,97391.0,97389.0,0.04266094]
[1732446883248,0.03176419,97394.0,97389.0,0.04266094]
[1732446883249,0.01906005,97390.0,97389.0,0.04266094]
[1732446884734,0.05082228,97390.0,97389.0,0.04266094]
[1732446884986,0.01906005,97390.0,97389.0,0.04266094]
[1732446885201,0.01905733,97390.0,97389.0,0.04266094]
[1732446885414,0.02879231,97395.0,97389.0,0.04266094]
[1732446885415,0.120188,97395.0,97389.0,0.04266094]
[1732446885627,0.09139569,97393.0,97389.0,0.04266094]
[1732446885846,0.09139569,97394.0,97389.0,0.04266094]
[1732446886072,0.02879231,97395.0,97382.0,0.0809]
[1732446886289,0.120188,97395.0,97382.0,0.0809]
[1732446886942,0.09139569,97394.0,97382.0,0.0809]
[1732446887399,0.120188,97395.0,97382.0,0.0809]
[1732446888265,0.120188,97395.0,97383.0,0.15]
[1732446888702,0.120188,97395.0,97389.0,0.0008585]
[1732446888917,0.02879231,97395.0,97389.0,0.0008585]
[1732446889199,0.120188,97395.0,97389.0,0.0008585]
[1732446889630,0.01905626,97394.0,97389.0,0.0008585]
[1732446889844,0.01905626,97393.0,97389.0,0.0008585]
[1732446890307,0.01905626,97392.0,97389.0,0.0008585]
[1732446890527,0.12023633,97395.0,97389.0,0.0008585]
[1732446890528,0.02879231,97395.0,97389.0,0.0008585]
[1732446890746,0.12023633,97395.0,97389.0,0.0008585]
[1732446890966,0.02879231,97395.0,97389.0,0.0008585]
[1732446891162,0.12023633,97395.0,97389.0,0.0008585]
[1732446891628,0.02879231,97395.0,97389.0,0.0008585]
[1732446891846,0.12023633,97395.0,97389.0,0.0008585]
[1732446892334,0.09144402,97394.0,97389.0,0.0008585]
[1732446892556,0.12023633,97395.0,97389.0,0.0008585]
[1732446893214,0.09144402,97394.0,97389.0,0.0008585]
[1732446893441,0.12023633,97395.0,97389.0,0.0008585]
[1732446894100,0.09144402,97394.0,97389.0,0.0008585]
[1732446895696,0.09144402,97394.0,97383.0,0.15102676]
[1732446895697,0.09144402,97394.0,97383.0,0.11761237]
[1732446896170,0.09144402,97391.0,97383.0,0.11761237]
[1732446896407,0.09144402,97392.0,97383.0,0.11658561]
[1732446896632,0.09144402,97393.0,97383.0,0.11658561]
[1732446897562,0.09144402,97393.0,97383.0,0.11761237]
[1732446898228,0.09144402,97394.0,97383.0,0.11761237]
[1732446898489,0.12023633,97395.0,97383.0,0.11761237]
[1732446898946,0.09144402,97394.0,97383.0,0.11761237]
[1732446899855,0.09144402,97393.0,97383.0,0.11761237]
[1732446900088,0.02879231,97395.0,97384.0,0.00102676]
[1732446900089,0.09144402,97394.0,97384.0,0.00102676]
[1732446900526,0.02879231,97395.0,97384.0,0.00102676]
[1732446900764,0.0017178,97393.0,97384.0,0.00102676]
[1732446901441,0.09316182,97393.0,97384.0,0.00102676]
[1732446901666,0.023,97392.0,97385.0,0.22961427]
[1732446901886,0.09316182,97393.0,97386.0,0.15102668]
[1732446902131,0.09316182,97393.0,97388.0,0.15]
[1732446902379,0.0017178,97393.0,97390.0,0.15]
[1732446902595,0.0017178,97393.0,97392.0,0.2303]
[1732446902827,0.0017178,97393.0,97392.0,0.37961427]
[1732446904420,0.13718268,97421.0,97418.0,0.38160788]
[1732446904705,0.41154604,97424.0,97410.0,0.0803]
[1732446904935,0.023,97419.0,97410.0,0.0803]
[1732446905147,0.023,97419.0,97393.0,0.25201427]
[1732446905148,0.023,97419.0,97400.0,0.0803]
[1732446906296,0.11445512,97419.0,97400.0,0.0803]
[1732446906510,0.023,97415.0,97400.0,0.02889067]
[1732446906728,0.11445512,97415.0,97400.0,0.02889067]
[1732446906951,0.11445512,97415.0,97392.0,0.08826749]
[1732446907169,0.16195512,97415.0,97392.0,0.04096749]
[1732446907392,0.09145512,97412.0,97392.0,0.04096749]
[1732446907659,0.09145512,97412.0,97383.0,0.0481589]
[1732446907660,0.0807,97397.0,97383.0,0.0008589]
[1732446907898,0.024,97394.0,97383.0,0.0008589]
[1732446908123,0.0705,97396.0,97383.0,0.0008589]
[1732446908124,0.001,97387.0,97383.0,0.0008589]
[1732446908380,0.025,97384.0,97383.0,0.0008589]
[1732446908607,0.11952544,97384.0,97383.0,0.0008589]
[1732446908845,0.15122788,97384.0,97383.0,0.0008589]
[1732446909073,0.33294215,97384.0,97383.0,0.0008589]
[1732446909729,0.67008913,97384.0,97383.0,0.0008589]
[1732446910241,0.67008913,97384.0,97366.0,0.0008582]
[1732446910242,0.025,97367.0,97366.0,0.0008582]
[1732446910477,0.22348261,97367.0,97366.0,0.0008582]
[1732446910719,0.25518505,97367.0,97366.0,0.0008582]
[1732446910951,0.81828462,97367.0,97366.0,0.0008582]
[1732446911166,0.48831776,97367.0,97366.0,0.0008582]
[1732446911410,0.11946834,97367.0,97366.0,0.0008582]
[1732446912334,0.33931888,97369.0,97366.0,0.0008582]
[1732446912335,0.023,97368.0,97366.0,0.0008582]
[1732446912550,0.11413858,97376.0,97366.0,0.0008582]
[1732446912797,0.09113858,97379.0,97366.0,0.0008582]
[1732446913011,0.09113858,97392.0,97367.0,0.25304119]
[1732446913247,0.09113858,97394.0,97367.0,0.25304119]
[1732446913473,0.09113858,97397.0,97367.0,0.25201427]
[1732446913688,0.0017178,97393.0,97367.0,0.25201427]
[1732446914140,0.0017178,97393.0,97367.0,0.20163174]
[1732446914363,0.0017178,97393.0,97368.0,0.00102682]
[1732446914583,0.0017178,97393.0,97370.0,0.0805]
[1732446914833,0.0017178,97393.0,97371.0,0.3030409]
[1732446915069,0.0017178,97393.0,97383.0,0.10201427]
[1732446915318,0.0017178,97393.0,97385.0,0.2]
[1732446915549,0.0017178,97393.0,97386.0,0.10201427]
[1732446915771,0.0017178,97393.0,97387.0,0.00102647]
[1732446916001,0.001717,97434.0,97387.0,0.00102647]
[1732446916002,0.00102681,97433.0,97409.0,0.5475822]
[1732446916230,0.00102681,97432.0,97389.0,0.15]
[1732446916475,0.001717,97434.0,97394.0,0.15]
[1732446916727,0.001717,97434.0,97396.0,0.15]
[1732446916950,0.001717,97434.0,97398.0,0.15]
[1732446917179,0.00102681,97433.0,97400.0,0.15]
[1732446917446,0.00102681,97433.0,97402.0,0.15]
[1732446917698,0.00102681,97433.0,97404.0,0.15]
[1732446917925,0.00102681,97433.0,97406.0,0.15]
[1732446917926,0.02402681,97433.0,97406.0,0.15]
[1732446918182,0.02402681,97433.0,97408.0,0.15]
[1732446918645,0.024,97426.0,97408.0,0.15]
[1732446918856,0.02402681,97425.0,97408.0,0.15]
[1732446919112,0.02402681,97425.0,97400.0,0.04154055]
[1732446919113,0.001,97422.0,97400.0,0.04154055]
[1732446919341,0.00102681,97425.0,97380.0,0.0805]
[1732446919342,0.023,97405.0,97380.0,0.0805]
[1732446919568,0.023,97405.0,97381.0,0.10201427]
[1732446919811,0.023,97412.0,97381.0,0.10201427]
[1732446920092,0.023,97414.0,97382.0,0.00102666]
[1732446920329,0.023,97422.0,97383.0,0.10201427]
[1732446920550,0.023,97422.0,97387.0,0.2]
[1732446920767,0.023,97422.0,97391.0,0.30201427]
[1732446920982,0.13669632,97432.0,97392.0,0.15]
[1732446920983,0.023,97431.0,97392.0,0.15]
[1732446921219,0.023,97431.0,97393.0,0.10304067]
[1732446921444,0.023,97431.0,97394.0,0.15]
[1732446921686,0.023,97431.0,97396.0,0.15]
[1732446921912,0.023,97433.0,97397.0,0.10201427]
[1732446922131,0.023,97433.0,97398.0,0.15]
[1732446922358,0.023,97433.0,97399.0,0.10201427]
[1732446922832,0.023,97433.0,97400.0,0.15]
[1732446923076,0.023,97433.0,97402.0,0.15]
[1732446923299,0.024,97433.0,97404.0,0.15]
[1732446923515,0.001,97429.0,97406.0,0.15]
[1732446923749,0.023,97430.0,97408.0,0.15]
[1732446923971,0.00102681,97428.0,97408.0,0.25201427]
[1732446924423,0.00102681,97428.0,97408.0,0.15]
[1732446924647,0.023,97433.0,97395.0,0.04160504]
[1732446924648,0.00102681,97432.0,97395.0,0.04160504]
[1732446924883,0.001717,97435.0,97387.0,0.15]
[1732446924884,0.024,97414.0,97397.0,0.15]
[1732446925062,0.023,97414.0,97399.0,0.15]
[1732446925345,0.023,97414.0,97401.0,0.15]
[1732446925586,0.023,97412.0,97401.0,0.15]
[1732446926030,0.0784,97422.0,97386.0,0.042125]
[1732446926031,0.00102681,97411.0,97386.0,0.042125]
[1732446926249,0.00102681,97420.0,97387.0,0.10201427]
[1732446926479,0.023,97418.0,97387.0,0.10201427]
[1732446926726,0.023,97398.0,97374.0,0.0782]
[1732446926948,0.023,97398.0,97388.0,0.00102666]
[1732446927649,0.023,97398.0,97389.0,0.10201427]
[1732446927862,0.13669632,97424.0,97390.0,0.15102657]
[1732446928086,0.13669632,97424.0,97383.0,0.0415197]
[1732446928087,0.00102681,97422.0,97392.0,0.15]
[1732446928309,0.00102681,97422.0,97394.0,0.15]
[1732446928529,0.023,97420.0,97394.0,0.15]
[1732446928738,0.00102681,97419.0,97394.0,0.15023357]
[1732446928968,0.024,97416.0,97394.0,0.15023357]
[1732446929185,0.10201427,97420.0,97394.0,0.15023357]
[1732446929186,0.02402681,97415.0,97395.0,0.00102662]
[1732446929623,0.00102681,97415.0,97395.0,0.00102662]
[1732446929847,0.023,97419.0,97395.0,0.00102662]
[1732446929848,0.00102681,97418.0,97395.0,0.00102662]
[1732446930065,0.023,97419.0,97395.0,0.00102662]
[1732446930066,0.00102681,97417.0,97395.0,0.00102662]
[1732446930286,0.00102681,97417.0,97396.0,0.00102662]
[1732446930520,0.00102681,97417.0,97395.0,0.15]
[1732446931166,0.00102681,97421.0,97395.0,0.15]
[1732446931386,0.00102681,97420.0,97395.0,0.15]
[1732446931609,0.02402681,97420.0,97395.0,0.15]
[1732446932032,0.00102681,97420.0,97395.0,0.15]
[1732446932244,0.00102681,97420.0,97396.0,0.00366912]
[1732446932459,0.00102681,97422.0,97396.0,0.00469569]
[1732446932698,0.00102681,97421.0,97395.0,0.15]
[1732446932914,0.00102681,97421.0,97397.0,0.00102657]
[1732446933382,0.00102681,97421.0,97398.0,0.25201427]
[1732446933589,0.023,97427.0,97399.0,0.00102647]
[1732446933820,0.0017178,97428.0,97401.0,0.15]
[1732446934039,0.0017178,97428.0,97402.0,0.1030407]
[1732446934254,0.0037178,97428.0,97403.0,0.15]
[1732446934463,0.0017178,97428.0,97405.0,0.15]
[1732446934677,0.0017178,97428.0,97407.0,0.15]
[1732446934945,0.023,97427.0,97409.0,0.15]
[1732446935192,0.002,97423.0,97409.0,0.15]
[1732446935387,0.023,97422.0,97410.0,0.00362497]
[1732446935682,0.00102681,97422.0,97410.0,0.00362497]
[1732446935919,0.00102681,97425.0,97410.0,0.00362497]
[1732446936150,0.00102681,97424.0,97410.0,0.00362497]
[1732446936613,0.00102681,97424.0,97397.0,0.04175598]
[1732446936871,0.00102681,97424.0,97399.0,0.15]
[1732446937135,0.00102681,97424.0,97399.0,0.25201427]
[1732446937363,0.00102681,97426.0,97400.0,0.00362867]
[1732446937624,0.00102681,97425.0,97400.0,0.00362867]
[1732446938573,0.00102681,97426.0,97400.0,0.00362867]
[1732446938846,0.002,97423.0,97400.0,0.00362867]
[1732446939077,0.023,97417.0,97400.0,0.00362867]
[1732446939286,0.14838687,97422.0,97394.0,0.00023357]
[1732446939287,0.002,97413.0,97394.0,0.00023357]
[1732446939496,0.0238726,97412.0,97394.0,0.00023357]
[1732446939924,0.0822,97411.0,97394.0,0.00023357]
[1732446940138,0.002,97409.0,97394.0,0.00023357]
[1732446940399,0.0822,97411.0,97394.0,0.00023357]
[1732446940400,0.0238726,97408.0,97394.0,0.00023357]
[1732446940927,0.023,97406.0,97394.0,0.00023357]
[1732446941157,0.023,97404.0,97394.0,0.00023357]
[1732446941384,0.023,97402.0,97394.0,0.00023357]
[1732446941607,0.023,97400.0,97394.0,0.00023357]
[1732446941848,0.01897059,97399.0,97394.0,0.00023357]
[1732446942084,0.023,97397.0,97394.0,0.00023357]
[1732446942293,0.023,97395.0,97394.0,0.00023357]
[1732446942506,0.13857142,97395.0,97394.0,0.00023357]
[1732446943832,0.13857142,97395.0,97394.0,0.00023356]
[1732446944058,0.04197059,97395.0,97394.0,0.00023356]
[1732446947989,0.023,97395.0,97394.0,0.00023356]
[1732446948259,0.04202561,97395.0,97394.0,0.10224783]
[1732446948475,0.04202561,97395.0,97394.0,0.2532745]
[1732446948717,0.023,97395.0,97394.0,0.25586144]
[1732446949176,0.04202561,97395.0,97394.0,0.25586144]
[1732446950086,0.023,97395.0,97394.0,0.25586144]
[1732446950327,0.023,97395.0,97394.0,0.2965777]
[1732446950602,0.01902561,97418.0,97395.0,0.15]
[1732446950815,0.0017168,97420.0,97397.0,0.15]
[1732446951032,0.0017168,97420.0,97399.0,0.15]
[1732446951246,0.0017168,97420.0,97401.0,0.15]
[1732446951460,0.0017168,97420.0,97403.0,0.15]
[1732446951672,0.023,97419.0,97405.0,0.15]
[1732446951882,0.023,97419.0,97407.0,0.15]
[1732446952092,0.023,97419.0,97408.0,0.10201427]
[1732446952305,0.023,97419.0,97408.0,0.10718527]
[1732446953863,0.023,97419.0,97408.0,0.10498874]
[1732446955638,0.023,97419.0,97409.0,0.00102644]
[1732446955844,0.023,97419.0,97409.0,0.00126]
[1732446956061,0.023,97419.0,97410.0,0.00391307]
[1732446956269,0.023,97419.0,97410.0,0.00414663]
[1732446956910,0.023,97419.0,97411.0,0.00102645]
[1732446957088,0.023,97419.0,97411.0,0.00126001]
[1732446957350,0.023,97419.0,97411.0,0.00023356]
[1732446957571,0.023,97419.0,97412.0,0.00390841]
[1732446957784,0.023,97419.0,97412.0,0.00414197]
[1732446964221,0.023,97419.0,97413.0,0.00102645]
[1732446964433,0.023,97419.0,97413.0,0.00126001]
[1732446964657,0.023,97419.0,97414.0,0.00388915]
[1732446964897,0.023,97419.0,97414.0,0.00514914]
[1732446965796,0.023,97419.0,97414.0,0.00412271]
[1732446966938,0.023,97417.0,97414.0,0.00023356]
[1732446967207,0.023,97415.0,97414.0,0.00023356]
[1732446967470,0.27916989,97415.0,97414.0,0.00023356]
[1732446967920,0.6162486,97415.0,97414.0,0.00023356]
[1732446968137,0.79890235,97415.0,97414.0,0.00023356]
[1732446970561,0.6162486,97415.0,97414.0,0.00023356]
[1732446973254,0.61628414,97415.0,97414.0,0.00023356]
[1732446973916,0.94860859,97415.0,97414.0,0.00023356]
[1732446974135,0.023,97412.0,97408.0,0.0008582]
[1732446974367,0.023,97410.0,97408.0,0.0008582]
[1732446974591,0.57340724,97409.0,97408.0,0.0008582]
[1732446974807,0.66593261,97409.0,97408.0,0.0008582]
[1732446975019,0.94186416,97409.0,97408.0,0.0008582]
[1732446975246,0.66793261,97409.0,97408.0,0.0008582]
[1732446975459,0.94178,97409.0,97408.0,0.0008582]
[1732446975673,0.94178,97409.0,97394.0,0.0008581]
[1732446975674,0.002,97396.0,97394.0,0.0008581]
[1732446975890,0.05470612,97395.0,97394.0,0.0008581]
[1732446976122,0.49065072,97395.0,97394.0,0.0008581]
[1732446976342,0.33522361,97395.0,97394.0,0.0008581]
[1732446976643,0.15266387,97395.0,97394.0,0.0008581]
[1732446976857,0.15353647,97395.0,97394.0,0.0008581]
[1732446977067,0.67321046,97395.0,97394.0,0.0008581]
[1732446977275,0.48953944,97395.0,97394.0,0.0008581]
[1732446977482,0.15266387,97395.0,97394.0,0.0008581]
[1732446977691,0.15353647,97395.0,97394.0,0.0008581]
[1732446978139,0.67281227,97395.0,97394.0,0.0008581]
[1732446978362,0.85464824,97395.0,97394.0,0.0008581]
[1732446978572,0.90134824,97395.0,97394.0,0.0008581]
[1732446979007,0.94702099,97395.0,97394.0,0.0008581]
[1732446979221,0.71887246,97395.0,97394.0,0.0008581]
[1732446979857,0.71887246,97395.0,97383.0,0.0008589]
[1732446979858,0.025,97394.0,97383.0,0.0008589]
[1732446980063,0.59119185,97394.0,97383.0,0.0008589]
[1732446980313,0.59031925,97394.0,97383.0,0.0008589]
[1732446980959,1.21971925,97394.0,97383.0,0.0008589]
[1732446981231,1.33909749,97394.0,97383.0,0.0008589]
[1732446981478,1.06531925,97394.0,97383.0,0.0008589]
[1732446981748,0.025,97384.0,97383.0,0.0008589]
[1732446981959,0.88768478,97384.0,97383.0,0.0008589]
[1732446982182,0.7185183,97384.0,97383.0,0.0008589]
[1732446982405,0.94628315,97384.0,97383.0,0.0008589]
[1732446982600,0.7185183,97384.0,97383.0,0.0008589]
[1732446983384,1.05488969,97384.0,97383.0,0.0008589]
[1732446983615,1.06809537,97384.0,97383.0,0.0008589]
[1732446983876,1.06809537,97384.0,97366.0,0.0008082]
[1732446983877,0.0814,97367.0,97366.0,0.0008082]
[1732446984120,0.27693376,97367.0,97366.0,0.0008082]
[1732446984342,0.32253376,97367.0,97366.0,0.0008082]
[1732446984571,0.45915293,97367.0,97366.0,0.0008082]
[1732446984796,0.87230357,97367.0,97366.0,0.0008082]
[1732446985013,0.69014467,97367.0,97366.0,0.0008082]
[1732446985227,0.87230357,97367.0,97366.0,0.0008082]
[1732446985443,0.32253376,97367.0,97366.0,0.0008082]
[1732446985877,0.482001,97367.0,97366.0,0.0008082]
[1732446986570,0.43446766,97367.0,97366.0,0.0008082]
[1732446986796,0.30946766,97367.0,97366.0,0.0008082]
[1732446987014,0.21853376,97367.0,97366.0,0.0008082]
[1732446987962,0.19553376,97367.0,97366.0,0.0008082]
[1732446988199,0.19640636,97367.0,97366.0,0.0008082]
[1732446988697,0.19640636,97367.0,97359.0,0.0008582]
[1732446988698,0.023,97366.0,97359.0,0.0008582]
[1732446988974,0.002,97360.0,97359.0,0.0008582]
[1732446989204,0.002,97360.0,97343.0,0.0008574]
[1732446989205,0.002,97358.0,97343.0,0.0008574]
[1732446989444,0.10288687,97357.0,97343.0,0.0008574]
[1732446990187,0.1936944,97357.0,97343.0,0.0008574]
[1732446990636,0.09080753,97355.0,97343.0,0.0008574]
[1732446990855,0.1936944,97354.0,97343.0,0.0008574]
[1732446991328,0.002,97352.0,97343.0,0.0008574]
[1732446991544,0.10288687,97351.0,97343.0,0.0008574]
[1732446991756,0.002,97348.0,97343.0,0.0008574]
[1732446991975,0.10288687,97347.0,97343.0,0.0008574]
[1732446993037,0.09788687,97347.0,97343.0,0.0008574]
[1732446998762,0.09788687,97347.0,97324.0,0.1971]
[1732446999268,0.09788687,97347.0,97325.0,0.0061407]
[1732446999753,0.09788687,97347.0,97343.0,0.0008582]
[1732447000693,0.09788687,97347.0,97344.0,0.00090565]
[1732447001892,0.09788687,97347.0,97343.0,0.0008582]
[1732447004306,0.0827,97346.0,97316.0,0.050403]
[1732447004529,0.10288687,97345.0,97316.0,0.09228678]
[1732447004759,0.10288687,97345.0,97317.0,0.00615042]
[1732447005276,0.1371844,97344.0,97318.0,0.00074331]
[1732447005536,0.0906844,97341.0,97318.0,0.00074331]
[1732447005788,0.1825266,97344.0,97319.0,0.00615914]
[1732447005789,0.10288687,97340.0,97319.0,0.00615914]
[1732447006002,0.10288687,97340.0,97320.0,0.0006561]
[1732447006518,0.0906844,97338.0,97320.0,0.0006561]
[1732447006780,0.0906844,97332.0,97321.0,0.0061533]
[1732447007063,0.0906844,97332.0,97320.0,0.0006561]
[1732447007064,0.1733844,97327.0,97313.0,0.0008576]
[1732447007307,0.10288687,97326.0,97313.0,0.0008576]
[1732447007564,0.0906844,97325.0,97313.0,0.0008576]
[1732447007783,0.10288687,97324.0,97313.0,0.0008576]
[1732447009293,0.19357127,97324.0,97313.0,0.0008576]
[1732447009562,0.0906844,97322.0,97313.0,0.0008576]
[1732447009775,0.10288687,97321.0,97313.0,0.0008576]
[1732447010204,0.10201427,97320.0,97313.0,0.0008576]
[1732447011157,0.6178116,97320.0,97313.0,0.0008576]
[1732447011377,0.33442853,97319.0,97313.0,0.0008576]
[1732447011715,0.22671101,97316.0,97296.0,0.0008582]
[1732447011838,0.30941101,97317.0,97296.0,0.0008582]
[1732447012070,0.18121746,97313.0,97296.0,0.0008582]
[1732447012300,0.18121746,97313.0,97301.0,0.04096552]
[1732447012546,0.10201427,97315.0,97301.0,0.04096552]
[1732447012547,0.51564599,97312.0,97301.0,0.04096552]
[1732447012780,0.18121746,97315.0,97301.0,0.04096552]
[1732447013003,0.0827,97317.0,97301.0,0.04096552]
[1732447013223,0.33454294,97316.0,97301.0,0.04096552]
[1732447013471,0.33454294,97315.0,97301.0,0.04096552]
[1732447013689,0.5157604,97314.0,97301.0,0.04096552]
[1732447013909,0.33454294,97313.0,97301.0,0.04096552]
[1732447014126,0.33454294,97312.0,97301.0,0.04096552]
[1732447014347,0.61777467,97312.0,97301.0,0.04096552]
[1732447014557,0.36614401,97311.0,97301.0,0.04096552]
[1732447014804,0.46209507,97311.0,97301.0,0.04096552]
[1732447015281,0.68880608,97311.0,97301.0,0.04096552]
[1732447015519,0.46209507,97311.0,97301.0,0.04096552]
[1732447016221,0.68873088,97311.0,97301.0,0.04096552]
[1732447016447,0.46209507,97311.0,97301.0,0.04096552]
[1732447016928,0.18133905,97304.0,97296.0,0.0008582]
[1732447017368,0.51588199,97303.0,97296.0,0.04156971]
[1732447017580,0.51588199,97303.0,97296.0,0.0008582]
[1732447017581,0.33454294,97302.0,97296.0,0.0008582]
[1732447017790,0.18133905,97303.0,97296.0,0.0008582]
[1732447018038,0.33477344,97302.0,97296.0,0.0008582]
[1732447018258,0.18133905,97305.0,97296.0,0.0008582]
[1732447018483,0.18133905,97303.0,97296.0,0.0008582]
[1732447018727,0.18133905,97303.0,97296.0,0.04186122]
[1732447019177,0.18133905,97305.0,97284.0,0.1963]
[1732447019366,0.13607848,97300.0,97285.0,0.023]
[1732447019626,0.09075267,97294.0,97285.0,0.02930128]
[1732447019856,0.0465,97325.0,97285.0,0.023]
[1732447020078,0.0465,97325.0,97284.0,0.23703212]
[1732447020079,0.09074831,97292.0,97287.0,0.023]
[1732447020295,0.09074831,97289.0,97287.0,0.023]
[1732447020522,0.13612246,97290.0,97288.0,0.00628571]
[1732447021442,0.13621567,97289.0,97288.0,0.00628571]
[1732447021687,0.13621567,97289.0,97277.0,0.15]
[1732447021688,0.18697556,97289.0,97277.0,0.173]
[1732447021929,0.09080848,97290.0,97277.0,0.173]
[1732447022388,0.09080848,97289.0,97277.0,0.173]
[1732447022627,0.09080848,97286.0,97277.0,0.06512749]
[1732447022860,0.0765,97296.0,97277.0,0.06512749]
[1732447022861,0.09080848,97285.0,97277.0,0.06512749]
[1732447023119,0.09080848,97283.0,97277.0,0.06512749]
[1732447023351,0.09080848,97278.0,97277.0,0.04212749]
[1732447023581,0.21271275,97278.0,97268.0,0.0008582]
[1732447023808,0.13625344,97271.0,97270.0,0.04062382]
[1732447024044,0.09813829,97271.0,97268.0,0.0008582]
[1732447024286,0.13620198,97269.0,97268.0,0.0008582]
[1732447024549,0.09813829,97269.0,97268.0,0.0008582]
[1732447024801,0.33529889,97269.0,97268.0,0.0008582]
[1732447025044,0.09793002,97269.0,97268.0,0.0008582]
[1732447025272,0.09080946,97269.0,97268.0,0.000659]
[1732447025506,0.27249687,97289.0,97268.0,0.000659]
[1732447025507,0.09080946,97277.0,97269.0,0.023]
[1732447025763,0.27249687,97297.0,97269.0,0.023]
[1732447025764,0.09080946,97279.0,97269.0,0.023]
[1732447026252,0.09080946,97277.0,97269.0,0.023]
[1732447026502,0.18166458,97284.0,97269.0,0.023]
[1732447026765,0.0464,97307.0,97269.0,0.023]
[1732447026766,0.18166458,97288.0,97269.0,0.023]
[1732447026982,0.0464,97307.0,97269.0,0.023]
[1732447026983,0.33539528,97290.0,97269.0,0.023]
[1732447027242,0.22708073,97292.0,97269.0,0.023]
[1732447027243,0.33539528,97289.0,97269.0,0.023]
[1732447027498,0.33539528,97288.0,97269.0,0.023]
[1732447027793,0.33539528,97287.0,97269.0,0.023]
[1732447028048,0.22708073,97293.0,97269.0,0.023]
[1732447028288,0.0464,97307.0,97269.0,0.023]
[1732447028289,0.22708073,97291.0,97269.0,0.023]
[1732447028524,0.22231792,97292.0,97270.0,0.10201427]
[1732447028753,0.39878571,97307.0,97271.0,0.17402787]
[1732447028994,0.27249687,97305.0,97273.0,0.173]
[1732447029219,0.03158934,97304.0,97275.0,0.173]
[1732447029439,0.03158934,97306.0,97277.0,0.173]
[1732447029671,0.03158934,97305.0,97277.0,0.27501427]
[1732447029918,0.22830311,97307.0,97277.0,0.27501427]
[1732447029919,0.03158934,97304.0,97277.0,0.27501427]
[1732447030166,0.10201427,97303.0,97279.0,0.023]
[1732447030407,0.0801,97296.0,97280.0,0.00563969]
[1732447030672,0.27249687,97292.0,97280.0,0.00563969]
[1732447030890,0.27249687,97292.0,97268.0,0.000659]
[1732447030891,0.27249687,97286.0,97268.0,0.000659]
[1732447031106,0.10201427,97285.0,97268.0,0.000659]
[1732447031323,0.0801,97284.0,97268.0,0.04294545]
[1732447031553,0.10201427,97283.0,97268.0,0.000659]
[1732447031796,0.0464,97281.0,97268.0,0.000659]
[1732447032023,0.13360361,97280.0,97268.0,0.000659]
[1732447032475,0.03158934,97279.0,97268.0,0.000659]
[1732447032699,0.0464,97281.0,97273.0,0.15]
[1732447032700,0.10201427,97278.0,97273.0,0.15]